bitfinex/quotes_SOLUSD_20241127
["timestamp","ask_amount","ask_price","bid_price","bid_amount"]
[1732704140314,2.43334,237.0,236.95,20.56306633]
[1732704140618,3.48568403,237.0,236.95,20.56306633]
[1732704140820,2.43334,237.0,236.95,20.56306633]
[1732704141219,21.61540974,236.99,236.91,20.56306633]
[1732704141396,21.61540974,236.99,236.93,20.56306633]
[1732704141924,1.05234341,236.99,236.93,20.56306633]
[1732704142218,1.05234341,236.99,236.92,20.56306633]
[1732704142429,22.99640633,237.0,236.92,20.56306633]
[1732704142637,1.0524705,236.99,236.92,20.56306633]
[1732704144523,2.43334,237.0,236.94,20.56306633]
[1732704144832,3.48568567,237.0,236.94,20.56306633]
[1732704145013,3.48568567,237.0,236.9,20.56306633]
[1732704145825,20.56306633,236.99,236.9,20.56306633]
[1732704146150,21.6155383,236.98,236.91,20.56306633]
[1732704146317,36.65056776,236.98,236.91,20.56306633]
[1732704146519,16.08750143,236.98,236.91,20.56306633]
[1732704148119,16.08750143,236.98,236.78,0.32266187]
[1732704148120,15.03502946,236.98,236.95,20.56306633]
[1732704148313,15.03502946,236.98,236.97,20.56306633]
[1732704148530,15.03502946,236.98,236.96,20.56306633]
[1732704148740,15.03502946,236.98,236.97,20.56306633]
[1732704150219,15.03502946,236.98,236.96,20.56306633]
[1732704150418,15.03502946,236.98,236.97,20.56306633]
[1732704151935,2.43334,237.0,236.97,20.56306633]
[1732704152134,2.43334,237.0,236.99,20.56306633]
[1732704152340,2.43334,237.0,236.99,12.82719965]
[1732704154028,2.43334,237.0,236.99,49.4312833]
[1732704154339,2.43334,237.0,236.99,12.82719965]
[1732704155338,2.43334,237.0,236.99,49.4312833]
[1732704156543,2.43334,237.0,236.99,36.60408365]
[1732704156734,2.43334,237.0,236.99,12.82719965]
[1732704159934,2.43334,237.0,236.96,12.82719965]
[1732704160251,2.43334,237.0,236.91,0.32183091]
[1732704160433,2.43334,237.0,236.95,12.82719965]
[1732704160747,2.43334,237.0,236.94,12.82719965]
[1732704161041,15.26053965,237.0,236.93,12.82719965]
[1732704161250,12.82719965,236.95,236.87,12.82719965]
[1732704161454,12.82719965,236.93,236.76,12.82719965]
[1732704161619,12.82719965,236.93,236.85,12.82719965]
[1732704161820,12.82719965,236.94,236.87,12.82719965]
[1732704162248,12.82719965,236.94,236.86,12.82719965]
[1732704162449,12.82719965,236.91,236.65,25.33]
[1732704162747,12.82719965,236.91,236.84,12.82719965]
[1732704162947,12.82719965,236.93,236.86,12.82719965]
[1732704163121,12.82719965,236.94,236.87,12.82719965]
[1732704163326,12.82719965,236.95,236.88,13.15017948]
[1732704163836,12.82719965,236.95,236.88,0.32297983]
[1732704164235,2.43334,237.0,236.87,12.82719965]
[1732704164547,20.54714541,236.93,236.86,20.54714541]
[1732704164844,22.98048541,237.0,236.82,20.54714541]
[1732704164845,20.54714541,236.9,236.82,20.54714541]
[1732704165046,20.54714541,236.88,236.8,20.54714541]
[1732704165234,1.05283233,236.87,236.64,25.68398154]
[1732704165431,20.54714541,236.82,236.75,20.54714541]
[1732704165632,20.54714541,236.83,236.76,20.54714541]
[1732704165834,23.776884,236.94,236.79,20.54714541]
[1732704166138,20.54714541,236.86,236.79,20.54714541]
[1732704166442,23.776884,236.96,236.58,16.912217]
[1732704166443,20.54714541,236.8,236.58,16.912217]
[1732704166756,20.54714541,236.8,236.73,20.54714541]
[1732704166929,20.54714541,236.81,236.74,20.54714541]
[1732704167247,1.05314357,236.8,236.74,20.54714541]
[1732704167543,20.54714541,236.81,236.74,20.54714541]
[1732704167750,20.54714541,236.83,236.74,20.54714541]
[1732704168048,1.05308588,236.82,236.76,20.54714541]
[1732704168238,1.05308588,236.82,236.74,20.54714541]
[1732704168633,20.54714541,236.81,236.74,20.54714541]
[1732704168847,1.05321071,236.8,236.74,20.54714541]
[1732704170447,20.54714541,236.84,236.76,20.54714541]
[1732704170629,1.0531775,236.83,236.76,20.54714541]
[1732704170829,1.0531775,236.83,236.77,3.16964942]
[1732704171645,1.0531775,236.83,236.77,5.28274903]
[1732704171839,15.46984067,236.86,236.8,20.54714541]
[1732704172040,16.52281979,236.86,236.8,20.54714541]
[1732704172245,20.54714541,236.87,236.8,20.54714541]
[1732704172537,1.05214461,236.86,236.8,20.54714541]
[1732704172749,5.75544809,236.87,236.8,20.54714541]
[1732704172953,1.05214461,236.86,236.8,20.54714541]
[1732704173130,20.54714541,236.91,236.82,20.54714541]
[1732704173330,20.54714541,236.93,236.86,20.54714541]
[1732704173659,20.54714541,236.97,236.88,20.54714541]
[1732704173834,1.05214461,236.96,236.88,20.54714541]
[1732704174541,1.05214461,236.96,236.9,20.54714541]
[1732704175455,20.54714541,236.99,236.92,20.54714541]
[1732704175748,1.05214461,236.98,236.92,20.54714541]
[1732704176832,20.54714541,236.97,236.9,20.54714541]
[1732704177162,2.43334,237.0,236.93,20.54714541]
[1732704177552,1.05214461,236.99,236.93,20.54714541]
[1732704178558,2.43334,237.0,236.93,20.54714541]
[1732704179941,2.43334,237.0,236.99,20.54714541]
[1732704180542,2.43334,237.0,236.97,20.54714541]
[1732704181249,2.43334,237.0,236.96,20.54714541]
[1732704181453,2.43334,237.0,236.94,0.84184027]
[1732704181454,2.43334,237.0,236.94,20.54714541]
[1732704181833,22.98048541,237.0,236.92,20.54714541]
[1732704182237,1.05214461,236.99,236.92,20.54714541]
[1732704182642,22.98048541,237.0,236.92,20.54714541]
[1732704183644,2.43334,237.0,236.94,20.54714541]
[1732704184659,2.43334,237.0,236.96,20.54714541]
[1732704184851,2.43334,237.0,236.98,20.54714541]
[1732704186260,2.43334,237.0,236.99,0.84165782]
[1732704186963,2.43334,237.0,236.98,20.54714541]
[1732704188663,2.43334,237.0,236.89,0.84157272]
[1732704188966,2.43334,237.0,236.95,20.54714541]
[1732704189762,2.43334,237.0,236.97,20.54714541]
[1732704190149,2.43334,237.0,236.99,20.54714541]
[1732704190948,2.43334,237.0,236.99,41.09429082]
[1732704191150,2.43334,237.0,236.99,20.54714541]
[1732704192248,2.43334,237.0,236.99,41.09429082]
[1732704192847,2.43334,237.0,236.91,0.84148385]
[1732704193166,2.43334,237.0,236.99,20.54714541]
[1732704194245,2.43334,237.0,236.99,41.09429082]
[1732704195576,2.43334,237.0,236.99,20.54714541]
[1732704200076,2.43334,237.0,236.99,41.09429082]
[1732704200872,2.43334,237.0,236.99,64.87117482]
[1732704201070,2.43334,237.0,236.99,20.54714541]
[1732704201773,2.43334,237.0,236.98,20.54714541]
[1732704201969,2.43334,237.0,236.97,20.54714541]
[1732704202273,2.43334,237.0,236.96,20.54714541]
[1732704203372,2.43334,237.0,236.94,20.54714541]
[1732704203968,22.98048541,237.0,236.93,0.84137954]
[1732704204175,20.54714541,236.98,236.91,20.54714541]
[1732704204357,20.54714541,236.97,236.9,20.54714541]
[1732704204670,20.54714541,236.99,236.92,20.54714541]
[1732704204867,22.98048541,237.0,236.93,20.54714541]
[1732704205552,20.54714541,236.99,236.92,20.54714541]
[1732704205754,2.43334,237.0,236.92,20.54714541]
[1732704205951,20.54714541,236.99,236.92,20.54714541]
[1732704206155,22.98048541,237.0,236.93,20.54714541]
[1732704206561,20.54714541,236.99,236.92,20.54714541]
[1732704207466,20.54714541,236.98,236.91,20.54714541]
[1732704207783,2.43334,237.0,236.92,20.54714541]
[1732704207961,20.54714541,236.99,236.92,20.54714541]
[1732704208362,12.83737509,236.99,236.92,12.83737509]
[1732704208669,12.83737509,236.99,236.93,12.83737509]
[1732704208857,15.27071509,237.0,236.93,12.83737509]
[1732704210153,15.27071509,237.0,236.82,16.893695]
[1732704210154,2.43334,237.0,236.96,12.83737509]
[1732704210360,2.43334,237.0,236.97,12.83737509]
[1732704210657,2.43334,237.0,236.99,12.83737509]
[1732704214787,2.43334,237.0,236.97,12.83737509]
[1732704215188,2.43334,237.0,236.98,12.83737509]
[1732704215362,2.43334,237.0,236.99,12.83737509]
[1732704216477,2.43334,237.0,236.98,12.83737509]
[1732704216781,2.43334,237.0,236.93,12.83737509]
[1732704217280,2.43334,237.0,236.94,12.83737509]
[1732704220061,2.43334,237.0,236.93,12.83737509]
[1732704220262,12.83737509,236.97,236.83,0.84178696]
[1732704220473,12.83737509,236.97,236.9,12.83737509]
[1732704220688,2.43334,237.0,236.83,0.84178696]
[1732704220689,12.83737509,236.98,236.91,12.83737509]
[1732704220988,13.8895197,236.97,236.9,12.83737509]
[1732704221212,12.83737509,236.98,236.91,12.83737509]
[1732704221875,12.83737509,236.92,236.83,0.84178696]
[1732704222070,12.83737509,236.92,236.85,12.83737509]
[1732704222272,12.83737509,236.9,236.82,12.83737509]
[1732704222484,12.83737509,236.88,236.78,0.84211417]
[1732704222787,12.83737509,236.88,236.52,217.55264415]
[1732704222788,31.05214461,236.87,236.62,0.84219542]
[1732704222967,12.83737509,236.84,236.77,12.83737509]
[1732704223170,12.83737509,236.84,236.76,12.83737509]
[1732704223781,12.83737509,236.84,236.77,12.83737509]
[1732704223977,12.83737509,236.84,236.68,0.84241602]
[1732704223978,12.83737509,236.85,236.78,12.83737509]
[1732704224774,30.0,236.83,236.78,12.83737509]
[1732704224979,30.0,236.83,236.77,12.83737509]
[1732704225172,30.0,236.83,236.78,12.83737509]
[1732704225773,30.0,236.83,236.77,12.83737509]
[1732704225994,30.0,236.83,236.76,12.83737509]
[1732704226275,30.0,236.83,236.77,20.56483644]
[1732704226697,30.0,236.83,236.79,20.56483644]
[1732704227273,20.56483644,236.9,236.82,20.56483644]
[1732704227578,1.05214461,236.89,236.82,20.56483644]
[1732704227780,21.61698105,236.89,236.81,20.56483644]
[1732704228486,20.56483644,236.88,236.81,20.56483644]
[1732704228723,20.56483644,236.87,236.8,20.56483644]
[1732704228884,20.56483644,236.88,236.8,20.56483644]
[1732704229398,20.56483644,236.88,236.81,20.56483644]
[1732704230185,20.56483644,236.9,236.82,21.40711233]
[1732704230578,20.56483644,236.92,236.85,20.56483644]
[1732704231695,20.56483644,236.9,236.83,20.56483644]
[1732704232085,20.56483644,236.9,236.81,20.56483644]
[1732704232292,20.56483644,236.85,236.78,20.56483644]
[1732704232593,20.56483644,236.87,236.79,21.40708455]
[1732704233499,20.56483644,236.87,236.8,20.56483644]
[1732704233703,20.56483644,236.87,236.81,0.84220024]
[1732704234803,20.56483644,236.89,236.81,0.84220024]
[1732704235500,1.05214461,236.97,236.81,0.84220024]
[1732704235688,20.56483644,236.87,236.81,0.84220024]
[1732704236682,1.05214461,236.97,236.86,20.56483644]
[1732704236683,20.56483644,236.93,236.86,20.56483644]
[1732704236897,20.56483644,236.95,236.88,20.56483644]
[1732704237113,20.56483644,236.95,236.89,0.84191548]
[1732704238193,2.43334,237.0,236.89,0.84191548]
[1732704238386,20.56483644,236.97,236.89,0.84191548]
[1732704238593,20.06483644,236.97,236.89,0.84191548]
[1732704239595,20.56483644,236.95,236.89,0.84191548]
[1732704240602,2.43334,237.0,236.89,0.84191548]
[1732704240603,20.56483644,236.97,236.89,0.84191548]
[1732704242006,20.56483644,236.97,236.9,20.56483644]
[1732704242193,20.56483644,236.99,236.92,20.56483644]
[1732704243308,20.56483644,236.99,236.93,0.84178277]
[1732704246002,20.56483644,236.97,236.93,0.84178277]
[1732704246508,20.56483644,236.94,236.86,20.56483644]
[1732704246710,20.56483644,236.92,236.87,0.84187364]
[1732704246885,20.56483644,236.89,236.81,20.56483644]
[1732704247495,20.56483644,236.88,236.82,0.5532329]
[1732704248293,12.84887598,236.88,236.82,0.5532329]
[1732704248490,12.84887598,236.88,236.81,0.55325082]
[1732704249005,12.84887598,236.85,236.81,0.55325082]
[1732704249211,12.84887598,236.85,236.79,0.55350218]
[1732704249711,12.84887598,236.84,236.79,0.55350218]
[1732704249892,12.84887598,236.82,236.78,0.55350958]
[1732704250088,12.84887598,236.83,236.76,13.40257819]
[1732704250599,12.84887598,236.82,236.76,0.55370221]
[1732704250795,12.84887598,236.81,236.76,0.55370221]
[1732704250998,12.84887598,236.81,236.75,0.55375085]
[1732704251206,12.84887598,236.8,236.75,0.55375085]
[1732704251508,12.84887598,236.79,236.75,0.55375085]
[1732704251697,12.84887598,236.76,236.73,0.55385702]
[1732704251899,1.05294268,236.87,236.6,0.55387548]
[1732704251900,12.84887598,236.74,236.6,0.55387548]
[1732704252094,12.84887598,236.71,236.64,12.84887598]
[1732704252294,12.84887598,236.7,236.65,0.55463849]
[1732704252501,12.84887598,236.69,236.65,0.55463849]
[1732704252695,12.84887598,236.7,236.63,13.40353461]
[1732704253511,12.84887598,236.64,236.53,0.55471523]
[1732704253693,12.84887598,236.67,236.6,12.84887598]
[1732704253896,12.84887598,236.65,236.58,12.84887598]
[1732704254217,12.84887598,236.64,236.59,0.55510791]
[1732704254415,1.05342992,236.75,236.57,0.55513791]
[1732704254416,23.776884,236.74,236.57,0.55513791]
[1732704254718,6.57603835,236.81,236.57,0.55513791]
[1732704254719,1.05385204,236.73,236.57,12.84887598]
[1732704255015,12.84887598,236.69,236.62,12.84887598]
[1732704255228,12.84887598,236.65,236.58,13.40377374]
[1732704255402,12.84887598,236.65,236.58,0.55489776]
[1732704255909,12.84887598,236.65,236.57,0.55538983]
[1732704256496,12.84887598,236.72,236.63,12.84887598]
[1732704256696,12.84887598,236.72,236.64,0.5548013]
[1732704257103,12.84887598,236.7,236.64,0.5548013]
[1732704257903,12.84887598,236.7,236.62,0.5549106]
[1732704258299,12.84887598,236.68,236.62,0.5244906]
[1732704261006,1.05352667,236.75,236.63,12.84887598]
[1732704261007,12.84887598,236.7,236.63,12.84887598]
[1732704262530,12.84887598,236.7,236.63,12.81846598]
[1732704264520,12.81931598,236.7,236.63,12.81846598]
[1732704265318,12.81931598,236.7,236.53,0.4940706]
[1732704265319,12.81931598,236.7,236.62,12.84887598]
[1732704265513,12.84887598,236.69,236.53,0.4940706]
[1732704265829,12.84887598,236.69,236.61,12.84887598]
[1732704266708,12.84887598,236.76,236.57,12.84887598]
[1732704266709,12.84887598,236.65,236.57,12.84887598]
[1732704267109,12.84887598,236.66,236.59,12.84887598]
[1732704267424,2.07065939,236.8,236.65,12.84887598]
[1732704267633,12.84887598,236.76,236.68,12.84887598]
[1732704268129,1.05339575,236.83,236.68,12.84887598]
[1732704268307,12.84887598,236.75,236.68,12.84887598]
[1732704269009,12.84887598,236.75,236.66,12.84887598]
[1732704269518,12.84887598,236.75,236.67,0.4640183]
[1732704270318,12.84887598,236.71,236.64,12.84887598]
[1732704270526,1.05358495,236.75,236.64,12.84887598]
[1732704270730,12.84887598,236.72,236.64,12.84887598]
[1732704273766,12.84887598,236.74,236.66,12.84887598]
[1732704274415,12.84887598,236.74,236.67,0.46403094]
[1732704276430,1.05340956,236.87,236.7,12.84887598]
[1732704276637,12.84887598,236.8,236.72,12.84887598]
[1732704279233,1.05340956,236.87,236.72,12.84887598]
[1732704279436,12.84887598,236.86,236.73,0.46315826]
[1732704279629,12.84887598,236.86,236.78,12.84887598]
[1732704279818,12.84887598,236.85,236.79,0.46298333]
[1732704281617,1.0529001,236.92,236.79,0.46298333]
[1732704281618,12.84887598,236.87,236.79,0.46298333]
[1732704282232,1.0529001,236.92,236.8,12.84887598]
[1732704282430,12.84887598,236.89,236.82,12.84887598]
[1732704282735,12.84887598,236.91,236.84,12.84887598]
[1732704283827,23.776884,236.84,236.69,12.84887598]
[1732704284023,12.84887598,236.78,236.69,12.84887598]
[1732704284444,12.84887598,236.78,236.58,0.46356589]
[1732704284617,12.84887598,236.78,236.69,12.84887598]
[1732704284821,23.776884,236.84,236.67,12.84887598]
[1732704284822,12.84887598,236.76,236.67,12.84887598]
[1732704285020,12.84887598,236.74,236.65,12.84887598]
[1732704285718,12.84887598,236.72,236.58,1.42971445]
[1732704285939,1.05357856,236.83,236.71,12.84887598]
[1732704286138,12.84887598,236.8,236.65,0.4634818]
[1732704286342,20.58090482,236.76,236.67,20.58090482]
[1732704286639,20.58090482,236.8,236.71,20.58090482]
[1732704286820,1.05327424,236.79,236.71,20.58090482]
[1732704287623,1.05327507,236.83,236.75,20.58090482]
[1732704288140,20.58090482,236.85,236.75,20.58090482]
[1732704288331,1.05314227,236.91,236.76,0.46312089]
[1732704288536,20.58090482,236.87,236.77,20.58090482]
[1732704288712,20.58090482,236.87,236.79,20.58090482]
[1732704289145,20.58090482,236.89,236.79,20.58090482]
[1732704289330,20.58090482,236.87,236.79,20.58090482]
[1732704291520,1.05300637,236.97,236.79,20.58090482]
[1732704291721,20.58090482,236.89,236.79,20.58090482]
[1732704291922,20.58090482,236.89,236.8,0.46282713]
[1732704292334,1.05280868,236.88,236.81,20.58090482]
[1732704292539,1.05280868,236.88,236.79,20.58090482]
[1732704293042,21.63380252,236.87,236.79,20.58090482]
[1732704293231,20.58090482,236.87,236.79,20.58090482]
[1732704293428,24.82985124,236.97,236.81,20.58090482]
[1732704293634,20.58090482,236.9,236.81,20.58090482]
[1732704293832,1.05287502,236.89,236.81,20.58090482]
[1732704294029,20.58090482,236.88,236.81,20.58090482]
[1732704297138,1.05288386,236.87,236.81,20.58090482]
[1732704297528,20.58090482,236.88,236.81,20.58090482]
[1732704297921,1.05289914,236.96,236.87,20.58090482]
[1732704298253,1.05257569,236.99,236.92,20.58090482]
[1732704298544,2.43334,237.0,236.94,20.58090482]
[1732704298759,1.05247348,236.99,236.94,20.58090482]
[1732704299118,1.05247348,236.99,236.92,20.58090482]
[1732704300730,2.43334,237.0,236.94,20.58090482]
[1732704304649,2.43334,237.0,236.97,20.58090482]
[1732704305032,2.43334,237.0,236.98,20.58090482]
[1732704306740,2.43334,237.0,236.99,0.46132222]
[1732704308327,2.43334,237.0,236.99,13.28479103]
[1732704310552,2.43334,237.0,236.99,26.10825984]
[1732704311550,2.43334,237.0,236.99,13.28479103]
[1732704311756,2.43334,237.0,236.99,26.10825984]
[1732704313541,2.43334,237.0,236.99,49.88514384]
[1732704313847,2.43334,237.0,236.99,24.23820622]
[1732704314046,2.43334,237.0,236.99,49.88514384]
[1732704317550,2.43334,237.0,236.99,0.46132222]
[1732704317752,2.43334,237.0,236.99,12.82346881]
[1732704318345,2.43334,237.0,236.92,0.46109009]
[1732704318553,2.43334,237.0,236.99,12.82346881]
[1732704318842,2.43334,237.0,236.99,25.64693762]
[1732704320064,2.43334,237.0,236.99,49.42382162]
[1732704320453,2.43334,237.0,236.99,62.11382162]
[1732704322065,2.43334,237.0,236.99,62.57500652]
[1732704324769,0.439516,237.1,237.01,12.69]
[1732704324951,0.439516,237.1,237.09,25.51346881]
[1732704326076,0.439516,237.1,237.02,9.934083]
[1732704326297,0.439516,237.1,237.09,12.82346881]
[1732704327364,0.439516,237.1,237.09,25.64693762]
[1732704327676,0.439516,237.1,237.09,26.10723466]
[1732704327847,0.439516,237.1,237.09,25.64693762]
[1732704328453,0.439516,237.1,237.09,49.42382162]
[1732704329159,0.439516,237.1,237.09,62.57416002]
[1732704330063,0.439516,237.1,237.09,68.47913359]
[1732704330575,30.0,237.25,237.12,23.776884]
[1732704330762,30.0,237.25,237.24,12.82346881]
[1732704332089,0.162,237.25,237.24,12.82346881]
[1732704333873,0.162,237.25,237.21,12.82346881]
[1732704334059,0.162,237.25,237.22,0.45915183]
[1732704334260,0.162,237.25,237.23,12.82346881]
[1732704338296,12.82346881,237.33,237.24,12.82346881]
[1732704338484,12.82346881,237.31,237.22,12.82346881]
[1732704338687,12.82346881,237.31,237.23,0.45895824]
[1732704339392,12.82346881,237.31,237.24,12.82346881]
[1732704340367,12.82346881,237.31,237.22,12.82346881]
[1732704340974,0.5070172,237.34,237.26,12.82346881]
[1732704341598,0.5070172,237.34,237.28,12.82346881]
[1732704342077,0.5070172,237.34,237.3,12.82346881]
[1732704342274,0.5070172,237.34,237.28,12.82346881]
[1732704343271,0.5070172,237.34,237.3,12.82346881]
[1732704343879,0.5070172,237.34,237.28,12.82346881]
[1732704346379,12.82346881,237.32,237.23,12.82346881]
[1732704346697,30.0,237.3,237.23,12.82346881]
[1732704347983,30.0,237.3,237.12,12.82346881]
[1732704347984,12.82346881,237.24,237.12,0.4588899]
[1732704348273,12.82346881,237.19,237.03,0.45900461]
[1732704348474,12.82346881,237.18,237.11,12.82346881]
[1732704348672,12.82346881,237.21,237.13,12.82346881]
[1732704348872,13.87482775,237.21,237.13,12.82346881]
[1732704349288,30.0,237.17,237.13,12.82346881]
[1732704350067,30.0,237.17,237.11,12.82346881]
[1732704352470,23.776884,237.26,237.13,12.82346881]
[1732704352677,12.82346881,237.22,237.13,12.82346881]
[1732704352900,12.82346881,237.2,237.11,12.82346881]
[1732704353088,1.05151416,237.19,237.11,12.82346881]
[1732704353295,12.82346881,237.18,237.09,12.82346881]
[1732704353597,42.82346881,237.16,237.07,12.82346881]
[1732704353772,1.05168068,237.15,237.07,12.82346881]
[1732704354295,1.05165177,237.15,237.07,12.82346881]
[1732704354797,30.0,237.14,237.07,12.82346881]
[1732704355372,1.05172447,237.13,237.09,12.82346881]
[1732704355573,30.0,237.14,237.12,12.82346881]
[1732704355795,1.05143984,237.23,237.12,12.82346881]
[1732704355983,1.05143984,237.23,237.15,12.82346881]
[1732704356388,12.82346881,237.25,237.15,12.82346881]
[1732704356584,12.82346881,237.23,237.15,12.82346881]
[1732704356781,1.05136309,237.22,237.15,12.82346881]
[1732704357190,12.82346881,237.21,237.13,12.82346881]
[1732704357393,1.05143611,237.2,237.13,12.82346881]
[1732704357690,1.05143611,237.2,237.11,12.82346881]
[1732704358398,12.82346881,237.21,237.11,12.82346881]
[1732704358580,1.05144113,237.2,237.11,12.82346881]
[1732704358980,12.82346881,237.23,237.15,12.82346881]
[1732704359187,1.0514803,237.29,237.15,12.82346881]
[1732704359188,12.82346881,237.25,237.15,12.82346881]
[1732704359396,1.05125456,237.24,237.15,12.82346881]
[1732704360396,12.82346881,237.25,237.17,12.82346881]
[1732704362295,12.82346881,237.23,237.15,12.82346881]
[1732704362499,23.776884,237.3,237.17,12.82346881]
[1732704362678,12.82346881,237.26,237.17,12.82346881]
[1732704362878,1.05126165,237.25,237.17,12.82346881]
[1732704363590,12.82346881,237.26,237.17,12.82346881]
[1732704363994,1.05118895,237.25,237.17,12.82346881]
[1732704364298,12.82346881,237.26,237.17,12.82346881]
[1732704364501,12.82346881,237.2,237.13,12.82346881]
[1732704364805,12.82346881,237.16,237.07,12.82346881]
[1732704364985,1.0517711,237.15,237.07,12.82346881]
[1732704365385,12.82346881,237.16,237.07,12.82346881]
[1732704365778,0.5070172,237.34,237.07,12.82346881]
[1732704365984,23.776884,237.36,237.08,12.82346881]
[1732704366196,30.0,237.14,237.08,12.82346881]
[1732704367403,0.53088223,237.13,237.06,12.82346881]
[1732704367584,30.0,237.12,237.06,12.82346881]
[1732704367784,0.53088223,237.11,237.06,12.82346881]
[1732704368004,30.0,237.12,237.06,12.82346881]
[1732704368588,30.0,237.1,237.06,12.82346881]
[1732704368991,12.82346881,237.15,237.06,12.82346881]
[1732704369188,12.82346881,237.11,237.04,12.82346881]
[1732704369501,12.82346881,237.09,237.0,12.82346881]
[1732704369691,12.82346881,237.05,236.96,12.82346881]
[1732704369887,0.53088223,237.04,236.96,12.82346881]
[1732704370716,30.53088223,237.04,236.96,12.82346881]
[1732704370896,12.82346881,237.03,236.96,12.82346881]
[1732704371095,12.82346881,237.01,236.94,12.82346881]
[1732704371807,30.0,237.04,236.98,12.82346881]
[1732704372010,12.82346881,237.08,236.98,12.82346881]
[1732704372311,12.82346881,237.08,237.0,12.82346881]
[1732704373099,0.53088223,237.07,237.0,12.82346881]
[1732704373501,12.82346881,237.06,236.98,12.82346881]
[1732704373998,0.53088223,237.05,236.96,12.82346881]
[1732704374201,12.82346881,237.04,236.96,12.82346881]
[1732704374406,0.53088223,237.03,236.94,12.82346881]
[1732704375208,0.53088223,237.03,236.85,12.823468]
[1732704375209,42.82346881,237.0,236.9,12.82346881]
[1732704375409,12.82346881,236.96,236.88,12.82346881]
[1732704375599,0.53088223,236.95,236.88,12.82346881]
[1732704376207,30.0,236.94,236.88,12.82346881]
[1732704376695,0.53088223,236.93,236.86,12.82346881]
[1732704376890,12.82346881,236.92,236.84,12.82346881]
[1732704377095,30.0,236.94,236.82,12.82346881]
[1732704377096,12.82346881,236.9,236.82,12.82346881]
[1732704377409,0.53088223,236.89,236.82,12.82346881]
[1732704377713,4.35435104,236.9,236.82,12.82346881]
[1732704378109,12.82346881,236.88,236.8,12.82346881]
[1732704378904,12.82346881,236.88,236.75,1.34931632]
[1732704379112,12.82346881,236.96,236.86,12.82346881]
[1732704379700,12.82346881,236.94,236.86,12.82346881]
[1732704380297,12.82346881,236.92,236.77,0.84206792]
[1732704380502,12.82346881,237.0,236.82,12.82346881]
[1732704380503,12.82346881,236.9,236.82,12.82346881]
[1732704380905,30.0,236.87,236.8,12.82346881]
[1732704381204,12.82346881,236.86,236.78,12.82346881]
[1732704382290,30.0,236.85,236.78,12.82346881]
[1732704383114,12.82346881,236.84,236.76,12.82346881]
[1732704383505,12.82346881,236.84,236.75,0.5070172]
[1732704383909,30.0,236.82,236.75,0.5070172]
[1732704384899,30.0,236.82,236.76,12.82346881]
[1732704386418,30.0,236.82,236.8,12.82346881]
[1732704386894,30.0,236.82,236.81,23.776884]
[1732704387721,12.82346881,236.92,236.81,23.776884]
[1732704387920,12.82346881,236.94,236.84,12.82346881]
[1732704388302,12.82346881,237.0,236.82,12.82346881]
[1732704388303,12.82346881,236.9,236.82,12.82346881]
[1732704388615,12.82346881,236.86,236.78,12.82346881]
[1732704388825,30.0,236.84,236.78,12.82346881]
[1732704389119,30.0,236.84,236.8,12.82346881]
[1732704389413,12.82346881,236.88,236.8,12.82346881]
[1732704390217,12.82346881,236.86,236.78,12.82346881]
[1732704391001,12.82346881,236.88,236.78,12.82346881]
[1732704391498,12.82346881,236.86,236.78,12.82346881]
[1732704391706,1.95580317,237.01,236.8,12.82346881]
[1732704391894,12.82346881,236.89,236.8,12.82346881]
[1732704392497,30.0,236.83,236.78,12.82346881]
[1732704392711,12.82346881,236.85,236.76,12.82346881]
[1732704393521,12.82346881,236.8,236.75,0.5070172]
[1732704393906,12.82346881,236.78,236.75,0.5070172]
[1732704394623,12.82346881,236.76,236.75,0.5070172]
[1732704396426,20.58549089,236.76,236.75,0.5070172]
[1732704397017,50.58549089,236.76,236.75,0.5070172]
[1732704397812,71.17098178,236.76,236.75,0.5070172]
[1732704398307,50.58549089,236.76,236.75,0.5070172]
[1732704398715,71.17098178,236.76,236.75,0.5070172]
[1732704400500,50.58549089,236.76,236.75,0.5070172]
[1732704401124,30.0,236.76,236.75,0.5070172]
[1732704401513,30.0,236.77,236.75,0.5070172]
[1732704402527,20.58549089,236.84,236.75,0.5070172]
[1732704402937,20.58549089,236.84,236.76,20.58549089]
[1732704403398,20.58549089,236.84,236.75,0.5070172]
[1732704403835,20.58549089,236.8,236.75,0.5070172]
[1732704404328,30.0,236.76,236.75,0.5070172]
[1732704407827,50.58549089,236.76,236.75,0.5070172]
[1732704410840,30.0,236.76,236.75,21.09250809]
[1732704411132,20.58549089,236.83,236.75,0.5070172]
[1732704411338,20.58549089,236.88,236.75,0.5070172]
[1732704411339,20.58549089,236.81,236.75,0.5070172]
[1732704411511,20.58549089,236.79,236.75,0.5070172]
[1732704412131,20.58549089,236.83,236.75,21.09250809]
[1732704412331,20.58549089,236.85,236.77,20.58549089]
[1732704412518,20.58549089,236.87,236.77,20.58549089]
[1732704414617,20.58549089,236.85,236.77,20.58549089]
[1732704415027,20.58549089,236.87,236.77,20.58549089]